bitfinex/quotes_ETHUSD_20251220
["timestamp","ask_amount","ask_price","bid_price","bid_amount"]
[1766233986978,3.1942734,2991.2,2990.5,13.90047054]
[1766233988288,1.7506,2991.1,2990.5,13.90047054]
[1766233988784,1.7506,2991.1,2990.5,10.55655688]
[1766233989954,1.4436734,2991.2,2990.5,10.55655688]
[1766233990150,1.7506,2991.1,2990.5,1.0056734]
[1766233990347,1.7506,2991.1,2990.5,4.34959406]
[1766233990556,0.439,2991.2,2990.5,5.74000036]
[1766233990761,2.1896,2991.2,2990.5,14.28879587]
[1766233990962,0.439,2991.2,2990.6,0.439]
[1766233991368,1.7506,2991.1,2990.6,0.439]
[1766233992991,1.7506,2991.1,2990.6,3.78277602]
[1766233993290,0.439,2991.2,2990.6,13.33624493]
[1766233994386,0.439,2991.2,2990.8,9.55346891]
[1766233994587,0.002,2991.4,2990.8,9.55346891]
[1766233994804,1.00658257,2991.4,2990.8,9.55346891]
[1766233994991,2.75718257,2991.4,2990.7,1.44358257]
[1766233996183,2.75718257,2991.4,2990.7,4.78727117]
[1766233996385,2.75718257,2991.4,2990.7,5.82477934]
[1766233998990,2.75718257,2991.4,2990.8,9.55346891]
[1766233999185,1.7526,2991.4,2990.8,9.55346891]
[1766233999488,1.7526,2991.4,2990.8,10.55801111]
[1766234005476,1.7526,2991.4,2990.8,1.0045422]
[1766234008519,1.7526,2991.4,2990.8,1.0055422]
[1766234010175,2.07261422,2991.4,2990.8,1.0055422]
[1766234011217,2.07261422,2991.4,2990.8,0.001]
[1766234011370,1.7526,2991.4,2990.8,0.001]
[1766234011685,1.7526,2991.4,2990.9,1.00452202]
[1766234020623,1.00652202,2991.6,2990.9,10.55545658]
[1766234020900,0.002,2991.6,2991.2,9.55093456]
[1766234021074,0.002,2991.6,2991.2,9.98993456]
[1766234021275,0.002,2991.6,2991.3,0.99899346]
[1766234021995,0.002,2991.6,2991.3,2.00335742]
[1766234025409,0.002,2991.6,2991.3,0.99899346]
[1766234025609,0.002,2992.0,2991.4,1.00436396]
[1766234026720,1.6172,2992.0,2991.4,1.00436396]
[1766234028287,1.6152,2991.9,2991.4,1.00436396]
[1766234028488,1.6152,2991.9,2991.4,2.53760079]
[1766234032037,1.6172,2991.9,2991.4,2.53760079]
[1766234034334,1.6172,2991.9,2991.4,1.00436396]
[1766234045444,0.002,2991.9,2991.4,1.00436396]
[1766234045646,0.358,2991.7,2991.4,1.00436396]
[1766234045844,1.6598,2991.6,2991.4,1.00436396]
[1766234047720,1.6598,2991.6,2991.4,1.00536396]
[1766234048945,1.6598,2991.6,2991.4,0.001]
[1766234058648,0.002,2991.9,2991.4,0.001]
[1766234058853,0.002,2991.9,2991.4,0.99968784]
[1766234062527,0.002,2991.9,2991.4,0.001]
[1766234062732,1.6717,2991.9,2991.4,0.001]
[1766234064332,1.6697,2991.8,2991.4,0.001]
[1766234067062,0.002,2991.9,2991.4,0.001]
[1766234067355,1.6717,2991.9,2991.4,0.001]
[1766234072260,0.002,2991.9,2991.4,0.001]
[1766234072436,1.6697,2991.8,2991.4,0.001]
[1766234086984,1.6717,2991.8,2991.4,0.001]
[1766234108805,0.002,2991.8,2991.4,0.001]
[1766234112378,0.002,2991.8,2991.4,1.43453892]
[1766234115283,0.002,2991.8,2991.4,0.001]
[1766234121792,1.604,2991.8,2991.4,0.001]
[1766234132429,1.602,2991.7,2991.4,0.001]
[1766234132593,0.348,2991.6,2990.9,3.34440157]
[1766234132796,0.002,2991.8,2991.0,0.439]
[1766234133016,1.254,2991.5,2991.0,0.439]
[1766234133223,1.602,2991.5,2991.0,0.439]
[1766234135019,1.602,2991.5,2991.0,0.44]
[1766234136732,1.48556255,2991.8,2991.0,0.44]
[1766234136934,1.2331,2991.5,2991.0,0.44]
[1766234137130,1.5781,2991.4,2991.0,0.001]
[1766234137323,1.5781,2991.4,2991.0,0.44]
[1766234140228,1.5781,2991.4,2991.0,3.7833555]
[1766234140939,0.13392281,2991.7,2991.0,3.7833555]
[1766234141139,1.5781,2991.6,2991.0,3.7833555]
[1766234141545,0.13392281,2991.7,2991.0,3.7833555]
[1766234141914,1.71202281,2991.7,2991.0,3.7833555]
[1766234142227,1.71202281,2991.7,2991.0,0.44]
[1766234142416,1.88362509,2991.7,2991.0,0.44]
[1766234142617,1.74970228,2991.7,2991.0,0.44]
[1766234142942,2.0181,2991.6,2991.0,0.44]
[1766234143541,0.44,2991.5,2991.0,0.44]
[1766234147352,0.44,2991.5,2991.0,3.7833254]
[1766234152255,0.442,2991.5,2991.0,3.7833254]
[1766234160835,0.442,2991.5,2991.0,7.83956667]
[1766234161035,0.002,2991.5,2991.0,7.83956667]
[1766234164235,1.00639758,2991.5,2991.0,7.83956667]
[1766234165069,0.002,2991.5,2991.0,7.83956667]
[1766234171065,1.00639758,2991.5,2991.0,7.83956667]
[1766234171669,0.002,2991.5,2991.0,7.83956667]
[1766234171870,0.002,2991.5,2991.2,3.34313987]
[1766234172169,1.00439758,2991.6,2991.2,3.34313987]
[1766234174466,1.00439758,2991.6,2991.1,3.34325164]
[1766234177272,1.00639758,2991.6,2991.1,3.34325164]
[1766234177769,0.002,2991.6,2991.1,3.34325164]
[1766234177975,0.002,2991.6,2991.2,1.76790491]
[1766234180379,0.002,2991.6,2991.2,5.11099943]
[1766234181067,1.00436732,2991.7,2991.2,5.11099943]
[1766234185391,1.6406,2991.8,2991.2,5.11099943]
[1766234185677,0.002,2991.7,2991.2,6.11535666]
[1766234186378,1.6406,2991.7,2991.2,2.77226214]
[1766234186552,1.6386,2991.6,2991.0,3.78328032]
[1766234186754,1.6386,2991.6,2991.1,1.00436396]
[1766234188274,1.6386,2991.6,2991.1,4.34760988]
[1766234195103,1.6386,2991.6,2991.1,1.00436396]
[1766234195798,1.00636396,2991.7,2991.1,1.00436396]
[1766234195962,1.1781,2991.6,2991.1,0.439]
[1766234196162,1.5351,2991.5,2991.0,4.78773122]
[1766234196364,1.5351,2991.5,2991.0,1.4444144]
[1766234196560,1.5351,2991.5,2991.0,0.44]
[1766234197166,2.53952112,2991.5,2991.0,0.44]
[1766234202589,2.53952112,2991.5,2991.0,3.783337]
[1766234202794,2.53952112,2991.5,2991.0,4.59666941]
[1766234203406,1.00442112,2991.5,2991.0,4.59666941]
[1766234205203,2.53952112,2991.5,2991.0,4.59666941]
[1766234206781,1.00442112,2991.5,2991.0,4.59666941]
[1766234211281,1.5351,2991.4,2991.1,0.439]
[1766234213998,2.53952112,2991.4,2991.1,0.439]
[1766234218524,2.53952112,2991.4,2991.0,0.001]
[1766234218723,2.53952112,2991.4,2991.1,0.439]
[1766234221495,0.002,2991.6,2991.1,3.78222689]
[1766234221821,0.002,2991.6,2991.1,5.11574903]
[1766234221990,0.002,2991.6,2991.2,0.13392371]
[1766234223718,0.002,2991.6,2991.2,3.47705744]
[1766234228142,0.002,2991.7,2991.2,12.89412828]
[1766234228443,0.002,2991.7,2991.3,1.00436396]
[1766234228602,0.002,2991.7,2991.4,1.37211135]
[1766234229698,0.002,2991.7,2991.3,1.00436396]
[1766234231429,0.002,2991.7,2991.2,12.89412828]
[1766234231729,0.002,2991.7,2991.2,13.89849224]
[1766234235819,0.002,2991.8,2991.2,13.89849224]
[1766234236334,0.002,2991.8,2991.2,12.89412828]
[1766234236533,0.002,2991.8,2991.3,1.80155311]
[1766234237344,0.002,2991.8,2991.4,9.55099455]
[1766234237520,0.002,2991.8,2991.5,0.439]
[1766234249221,1.5859,2992.7,2991.9,9.54700675]
[1766234249544,1.5859,2992.7,2991.9,0.439]
[1766234249545,1.5859,2992.6,2991.9,0.439]
[1766234249843,1.5839,2992.5,2991.9,0.439]
[1766234250060,1.5839,2992.5,2992.0,1.00420258]
[1766234250745,1.5839,2992.5,2991.9,0.439]
[1766234250949,1.5839,2992.5,2991.9,1.44320258]
[1766234256556,1.1777,2992.4,2991.9,1.44320258]
[1766234256730,1.1757,2992.2,2991.9,1.00420258]
[1766234257451,0.3631,2992.3,2991.9,1.00420258]
[1766234257962,0.002,2992.4,2991.9,1.00420258]
[1766234258459,0.002,2992.4,2991.9,1.48276925]
[1766234258644,0.002,2992.4,2991.9,0.47856667]
[1766234259536,0.002,2992.3,2991.9,0.47856667]
[1766234268461,0.002,2992.3,2991.9,0.47956667]
[1766234268649,0.002,2992.3,2991.9,0.001]
[1766234276274,0.002,2992.3,2992.0,0.1338883]
[1766234276649,0.002,2992.6,2992.0,0.1338883]
[1766234276855,0.002,2992.7,2992.1,9.54453786]
[1766234277055,0.002,2992.7,2992.2,1.40684262]
[1766234277456,0.002,2992.3,2992.2,1.54071478]
[1766234277680,0.002,2992.3,2992.2,0.57287216]
[1766234280483,0.002,2992.3,2992.2,0.13387216]
[1766234280677,0.002,2992.3,2992.2,0.57287216]
[1766234283086,0.002,2992.3,2992.2,0.13387216]
[1766234283296,1.5408,2992.3,2992.2,0.439]
[1766234283507,1.5408,2992.3,2991.9,0.001]
[1766234283701,0.002,2992.3,2991.9,0.001]
[1766234283987,1.5388,2992.0,2991.6,0.439]
[1766234290794,1.5388,2992.0,2991.6,0.8172799]
[1766234295505,2.64072611,2992.3,2991.6,0.8172799]
[1766234296503,1.6345,2992.2,2991.6,0.8172799]
[1766234297373,1.6345,2992.2,2991.6,0.439]
[1766234297898,1.6345,2992.2,2991.6,1.44322611]
[1766234299076,0.002,2992.3,2991.6,1.44322611]
[1766234299282,1.6345,2992.1,2991.6,1.44322611]
[1766234300600,1.6345,2992.1,2991.6,1.00422611]
[1766234300800,1.6345,2992.1,2991.7,0.439]
[1766234301399,1.6345,2992.1,2991.6,1.00422611]
[1766234301604,1.1897,2992.0,2991.7,0.439]
[1766234301806,1.5629,2992.0,2991.7,0.439]
[1766234305303,1.1897,2992.1,2991.7,0.439]
[1766234305504,1.1897,2991.9,2991.7,0.439]
[1766234305705,1.5629,2991.9,2991.7,0.439]
[1766234316114,1.2527,2991.9,2991.6,0.001]
[1766234316315,1.6208,2991.9,2991.6,0.001]
[1766234318323,0.002,2992.0,2991.6,0.001]
[1766234318628,0.002,2992.0,2991.5,0.001]
[1766234318800,1.2527,2991.8,2991.5,0.001]
[1766234319000,1.6208,2991.7,2991.5,0.001]
[1766234337132,1.6228,2991.7,2991.5,0.001]
[1766234344634,0.002,2991.7,2991.5,0.001]
[1766234344836,1.5543,2991.7,2991.5,0.001]
[1766234345823,1.5543,2991.7,2991.1,0.001]
[1766234345824,9.54813439,2991.6,2991.1,0.001]
[1766234346023,0.3608,2991.5,2991.1,0.001]
[1766234346223,1.5523,2991.4,2991.1,0.001]
[1766234347141,0.13392819,2991.3,2991.1,0.001]
[1766234347348,0.002,2991.7,2991.1,9.54913439]
[1766234347661,0.002,2991.9,2991.3,9.54813439]
[1766234347851,0.002,2991.9,2991.3,12.89109532]
[1766234348240,0.002,2991.9,2991.4,0.439]
[1766234349117,0.002,2992.0,2991.4,0.439]
[1766234349950,0.002,2992.0,2991.4,3.78188953]
[1766234350159,0.002,2992.0,2991.5,1.33300239]
[1766234350622,0.002,2992.0,2991.5,2.33728902]
[1766234353161,0.002,2992.0,2991.5,1.33300239]
[1766234371691,0.002,2992.0,2991.4,3.34289145]
[1766234372062,0.002,2992.0,2991.4,4.34717808]
[1766234373981,0.441,2992.2,2991.5,0.439]
[1766234374770,0.441,2992.2,2991.5,1.44322611]
[1766234376204,0.002,2992.0,2991.5,1.44322611]
[1766234376413,0.002,2992.0,2991.6,0.47871176]
[1766234376783,0.002,2992.0,2991.6,0.91971176]
[1766234383174,0.002,2992.2,2991.6,4.26237475]
[1766234383498,0.002,2992.3,2991.7,0.439]
[1766234384075,0.002,2992.3,2991.7,3.78155665]
[1766234384279,0.002,2992.3,2991.8,0.42602684]
[1766234384471,0.002,2992.0,2991.8,0.42602684]
[1766234394615,0.002,2992.3,2991.8,0.42602684]
[1766234394990,0.002,2992.3,2991.7,0.439]
[1766234395203,1.536,2992.3,2991.7,0.439]
[1766234395410,1.534,2992.2,2991.7,0.439]
[1766234398809,0.3669,2992.1,2991.6,0.439]
[1766234399135,1.534,2992.1,2991.6,0.878]
[1766234399634,1.534,2992.1,2991.6,0.439]
[1766234399838,1.534,2992.1,2991.6,0.878]
[1766234400008,1.534,2992.1,2991.6,1.30029162]
[1766234403437,1.534,2992.1,2991.6,0.86129162]
[1766234403605,1.534,2992.1,2991.6,1.30029162]
[1766234406416,1.534,2992.1,2991.6,0.878]
[1766234406741,1.534,2992.1,2991.6,0.439]
[1766234411344,1.5935,2992.1,2991.6,0.439]
[1766234411515,1.5935,2991.9,2991.5,0.001]
[1766234411719,1.5935,2992.1,2991.5,0.001]
[1766234411915,0.49394345,2992.1,2991.5,0.001]
[1766234412120,0.3696,2991.9,2991.5,0.001]
[1766234412418,1.5935,2991.9,2991.5,0.001]
[1766234412619,1.2239,2992.1,2991.5,0.001]
[1766234412847,1.2239,2991.9,2991.5,0.001]
[1766234413021,1.5935,2991.8,2991.5,0.001]
[1766234415348,3.47708038,2992.1,2991.5,0.001]
[1766234415522,0.39180804,2992.0,2991.5,0.001]
[1766234415723,0.3696,2991.8,2991.5,0.001]
[1766234415932,1.5935,2991.7,2991.5,0.001]
[1766234421753,1.5935,2991.7,2991.4,0.001]
[1766234421958,3.86797328,2992.0,2991.3,0.001]
[1766234422127,0.3713,2991.5,2991.3,0.001]
[1766234422327,1.5644,2991.5,2991.3,0.001]
[1766234423258,1.1931,2991.5,2991.1,0.441]
[1766234423458,1.5644,2991.4,2991.1,0.441]
[1766234424942,1.5644,2991.4,2991.1,0.001]
[1766234426880,0.3713,2991.6,2991.1,0.001]
[1766234427078,1.1931,2991.3,2991.1,0.001]
[1766234427251,1.5644,2991.3,2991.1,0.001]
[1766234427748,0.13393223,2991.5,2991.1,0.001]
[1766234427949,0.3713,2991.3,2991.1,0.001]
[1766234428173,0.13393223,2991.5,2990.8,0.001]
[1766234428354,3.34270071,2991.6,2990.8,0.001]
[1766234428559,0.3713,2991.3,2990.8,0.001]
[1766234428764,1.5644,2991.1,2990.8,0.001]
[1766234433580,1.1931,2991.4,2990.8,0.001]
[1766234433880,1.1931,2991.0,2990.8,0.001]
[1766234434083,1.5644,2991.0,2990.8,0.001]
[1766234440092,1.1451,2991.3,2990.8,0.001]
[1766234440265,1.1451,2991.1,2990.8,0.001]
[1766234441063,1.5056,2991.1,2990.8,0.001]
[1766234449008,0.439,2991.4,2990.8,0.001]
[1766234449201,0.3605,2991.0,2990.8,0.001]
[1766234449375,1.5056,2991.0,2990.8,0.001]
[1766234460113,1.5076,2991.0,2990.8,0.001]
[1766234461199,0.002,2991.0,2990.8,0.001]
[1766234461400,1.5056,2990.9,2990.7,0.001]
[1766234466633,1.1315,2990.8,2990.5,0.441]
[1766234466836,2.5397954,2990.7,2990.4,0.001]
[1766234467307,1.4712,2990.6,2990.4,0.001]
[1766234467910,1.1315,2990.9,2990.4,0.001]
[1766234468137,1.4712,2990.8,2990.4,0.001]
[1766234473536,0.13595376,2991.0,2990.4,0.001]
[1766234473710,0.20461538,2990.9,2990.4,0.001]
[1766234476414,0.002,2991.0,2990.4,9.555454]
[1766234476614,0.002,2990.9,2990.4,9.555454]
[1766234476812,0.002,2990.9,2990.5,0.439]
[1766234477009,0.002,2990.9,2990.6,9.554454]
[1766234477215,0.002,2990.9,2990.5,1.44357584]
[1766234477418,0.002,2990.9,2990.6,1.46774153]
[1766234477622,0.002,2990.9,2990.6,1.43430343]
[1766234478043,0.002,2990.9,2990.7,0.03343698]
[1766234479012,0.002,2990.9,2990.6,1.43430343]
[1766234480316,0.002,2990.9,2990.6,1.56824687]
[1766234481044,0.002,2990.9,2990.6,1.46824687]
[1766234481744,0.002,2990.9,2990.6,0.13394344]
[1766234485552,0.002,2990.9,2990.7,0.03343698]
[1766234485760,0.002,2990.9,2990.6,0.13394344]
[1766234504465,0.002,2990.9,2990.6,3.47775011]
[1766234504773,1.5093,2991.8,2990.8,9.55228923]
[1766234504966,1.5093,2991.8,2990.9,1.39422892]
[1766234505866,1.5093,2991.8,2991.0,1.00432025]
[1766234510889,1.1458,2991.8,2991.1,0.439]
[1766234511045,1.5093,2991.7,2991.0,1.44332025]
[1766234511249,1.5093,2991.7,2991.0,0.439]
[1766234511451,1.5093,2991.7,2991.1,1.00435051]
[1766234512355,3.34448655,2991.8,2991.1,1.00435051]
[1766234512554,1.5093,2991.7,2991.1,1.00435051]
[1766234512787,3.34448655,2991.8,2991.1,1.00435051]
[1766234512994,1.5093,2991.7,2991.1,1.00435051]
[1766234513690,1.1458,2991.7,2991.1,1.00435051]
[1766234513898,1.5093,2991.6,2991.1,1.00435051]
[1766234517200,0.002,2991.8,2991.1,1.00435051]
[1766234517393,1.5113,2991.8,2991.1,1.48303303]
[1766234517707,0.441,2992.1,2991.1,4.8262599]
[1766234517873,0.441,2992.1,2991.2,3.34308119]
[1766234518069,0.002,2992.1,2991.2,3.34308119]
[1766234518292,0.002,2992.1,2991.2,3.37651258]
[1766234518506,1.5113,2992.1,2991.3,1.72410567]
[1766234518676,0.002,2991.6,2991.4,0.439]
[1766234519908,0.002,2991.6,2991.4,1.44326309]
[1766234524713,0.002,2991.6,2991.4,0.439]
[1766234540429,1.471,2991.6,2991.2,1.00425637]
[1766234540627,1.471,2991.6,2991.1,0.439]
[1766234542105,1.471,2991.6,2991.4,0.001]
[1766234547241,1.524,2991.5,2991.1,0.439]
[1766234551180,1.524,2991.5,2991.4,0.001]
[1766234552658,1.524,2991.5,2991.0,0.44]
[1766234552857,0.002,2991.6,2991.0,0.44]
[1766234553058,1.524,2991.5,2991.0,0.44]
[1766234553660,0.002,2991.6,2991.0,0.44]
[1766234553859,1.524,2991.5,2991.0,0.44]
[1766234554044,1.159,2991.5,2991.0,0.44]
[1766234554227,1.524,2991.4,2991.0,0.44]
[1766234557155,1.524,2991.4,2991.0,0.001]
[1766234557452,1.1296,2991.5,2991.0,0.001]
[1766234557656,1.1296,2991.3,2991.0,0.001]
[1766234557838,1.4826,2991.3,2991.0,0.001]
[1766234564679,0.353,2991.3,2991.0,0.001]
[1766234564880,1.4826,2991.3,2991.0,0.001]
[1766234565306,1.4826,2991.4,2991.0,0.001]
[1766234565485,0.353,2991.2,2991.0,0.001]
[1766234565686,1.4826,2991.2,2991.0,0.001]
[1766234573424,0.25731364,2991.4,2991.0,0.001]
[1766234573595,1.4826,2991.1,2991.0,0.001]
[1766234573800,1.4826,2991.1,2990.7,3.34366573]
[1766234574121,1.4826,2991.1,2990.7,3.78266573]
[1766234574419,1.4826,2991.1,2990.7,3.34366573]
[1766234574616,1.4826,2991.1,2990.7,3.78266573]
[1766234576223,1.4826,2991.1,2991.0,0.001]
[1766234582935,1.4826,2991.3,2991.0,0.001]
[1766234583405,1.76344501,2991.3,2991.0,0.001]
[1766234586525,0.28084501,2991.3,2991.0,0.001]
[1766234597958,0.002,2991.4,2991.0,0.001]
[1766234635588,0.002,2991.4,2991.0,0.001]
[1766234636482,1.5097,2991.4,2991.0,0.001]
[1766234638093,1.5077,2991.3,2991.0,0.001]
[1766234639491,0.002,2991.4,2991.0,0.001]
[1766234647203,0.002,2991.7,2991.1,0.439]
[1766234648903,0.002,2991.7,2991.2,3.34313987]
[1766234649085,0.002,2991.7,2991.3,0.37821399]
[1766234653989,0.002,2991.7,2991.1,0.439]
[1766234654188,0.002,2991.7,2991.1,3.7822497]
[1766234655805,1.4301,2991.7,2991.1,3.7822497]
[1766234657604,1.4301,2991.7,2991.2,1.00435723]
[1766234658013,0.002,2991.7,2991.2,1.00435723]
[1766234658309,1.4281,2991.6,2991.2,1.00435723]
[1766234664714,0.002,2991.7,2991.2,1.48312453]
[1766234665220,0.002,2991.6,2991.2,1.48312453]
[1766234670924,0.002,2991.6,2991.2,1.00435723]
[1766234678427,1.4077,2991.5,2991.2,1.00435723]
[1766234680219,1.4077,2991.5,2991.1,0.44]
[1766234680735,1.4077,2991.5,2991.1,0.001]
[1766234680908,1.4077,2991.5,2991.1,1.00535723]
[1766234681109,0.002,2991.6,2991.1,1.00535723]
[1766234683331,1.4097,2991.6,2991.1,1.00535723]
[1766234683511,1.4077,2991.5,2991.1,0.001]
[1766234697533,1.0682,2991.5,2991.1,0.001]
[1766234697735,1.4077,2991.5,2991.1,0.001]
[1766234698347,1.00638749,2991.6,2991.1,0.001]
[1766234698545,1.4077,2991.5,2991.1,0.001]
[1766234703453,1.44114944,2991.5,2991.1,0.001]
[1766234703758,1.4077,2991.5,2991.1,0.001]
[1766234711241,1.00641103,2991.6,2991.1,0.001]
[1766234711635,2.40881103,2991.6,2991.1,0.001]
[1766234713464,2.65009213,2991.6,2991.1,0.001]
[1766234715853,1.4024,2991.5,2991.1,0.001]
[1766234722171,0.3512,2991.4,2991.1,0.001]
[1766234722351,1.3924,2991.4,2991.1,0.001]
[1766234723959,0.2432811,2991.6,2991.1,0.001]
[1766234724162,1.3924,2991.4,2991.1,0.001]
[1766234725453,1.3944,2991.6,2991.1,0.001]
[1766234726365,0.002,2991.6,2991.1,0.001]
[1766234726569,1.3924,2991.5,2991.1,0.001]
[1766234739776,0.002,2991.6,2991.1,0.001]
[1766234740158,1.4002,2991.4,2991.1,0.001]
[1766234740360,1.4002,2991.4,2991.1,0.13492416]
[1766234741489,0.24066312,2991.4,2991.1,0.13492416]
[1766234741689,0.441,2991.6,2991.1,0.001]
[1766234741983,0.3731,2991.3,2991.1,0.001]
[1766234742289,1.4002,2991.3,2991.1,0.001]
[1766234743283,1.00447493,2991.5,2991.1,0.001]
[1766234743487,0.441,2991.6,2991.1,0.001]
[1766234743688,1.18883193,2991.5,2991.1,0.001]
[1766234746798,0.441,2991.6,2991.1,0.001]
[1766234747095,1.44545811,2991.6,2991.1,0.001]
[1766234747295,0.441,2991.6,2991.1,0.001]
[1766234747489,0.441,2991.6,2991.1,1.00545811]
[1766234762198,0.441,2991.6,2991.1,0.001]
[1766234764512,0.441,2991.6,2991.1,1.00545811]
[1766234766209,1.8038,2991.6,2991.1,1.00545811]
[1766234779114,1.8038,2991.6,2991.1,0.001]
[1766234783024,0.002,2991.7,2991.1,0.001]
[1766234783322,0.002,2991.7,2991.2,0.43497439]
[1766234783523,0.002,2991.7,2991.2,1.43935516]
[1766234783934,0.002,2991.7,2991.2,0.43497439]
[1766234784140,0.002,2991.7,2991.3,1.00438077]
[1766234791736,0.002,2991.7,2991.3,4.34740465]
[1766234792034,0.002,2991.7,2991.3,5.20396616]
[1766234792219,0.002,2991.8,2991.3,5.20396616]
[1766234792424,1.00636396,2992.1,2991.3,5.20396616]
[1766234792624,1.00636396,2992.1,2991.3,4.19958539]
[1766234792814,1.00636396,2992.1,2991.4,1.00436396]
[1766234793016,1.28626036,2992.1,2991.4,1.00436396]
[1766234793518,0.002,2992.2,2991.6,9.54823313]
[1766234793713,0.002,2992.5,2991.6,9.54823313]
[1766234794131,0.002,2992.5,2991.7,1.00418241]
[1766234795423,0.9824,2992.5,2991.7,4.34672053]
[1766234795633,1.3358,2992.4,2991.7,1.00418241]
[1766234795936,1.3358,2992.4,2991.7,0.81286021]
[1766234796433,1.3358,2992.4,2991.7,1.81704262]
[1766234796624,1.3358,2992.4,2991.7,5.1596154]
[1766234797338,1.3358,2992.3,2991.8,0.439]
[1766234798238,1.3358,2992.3,2991.9,1.00418241]
[1766234799143,0.002,2992.5,2991.9,1.50541979]
[1766234799649,0.002,2992.5,2991.9,13.38736537]
[1766234799814,0.002,2992.5,2992.0,1.00418241]
[1766234802054,0.002,2992.3,2992.0,1.00418241]
[1766234813632,0.002,2992.3,2991.9,10.04505298]
[1766234813833,0.002,2992.3,2991.9,11.04923539]
[1766234819557,0.002,2992.3,2991.9,1.50541979]
[1766234819925,0.002,2992.3,2991.9,4.8477741]
[1766234820348,0.002,2992.3,2992.0,0.43497439]
[1766234820556,0.002,2992.3,2991.9,14.3915897]
[1766234820859,0.002,2992.3,2992.0,0.03342245]
[1766234821043,0.002,2992.3,2992.0,1.03758134]
[1766234821438,0.002,2992.3,2991.9,13.38740729]
[1766234821635,0.002,2992.3,2992.1,0.13388785]
[1766234829056,0.002,2992.3,2992.1,0.57288785]
[1766234829263,1.3104,2992.2,2992.0,0.001]
[1766234829640,1.52292602,2992.2,2992.0,0.001]
[1766234839569,1.17312602,2992.2,2992.0,0.001]
[1766234839762,1.3104,2992.1,2991.8,0.439]
[1766234841678,1.3104,2992.1,2992.0,0.001]
[1766234848280,1.369,2992.2,2991.6,0.001]
[1766234848503,1.0125,2992.2,2991.7,0.439]
[1766234848654,1.369,2992.1,2991.7,0.439]
[1766234849175,1.369,2992.1,2991.6,0.001]
[1766234849382,1.369,2992.1,2991.7,0.439]
[1766234850079,1.369,2992.1,2992.0,0.001]
[1766234850883,0.002,2992.2,2991.7,0.439]
[1766234851087,1.369,2992.0,2991.6,0.001]
[1766234851288,1.369,2992.0,2991.7,0.439]
[1766234857188,1.369,2992.0,2991.6,0.001]
[1766234857360,1.369,2992.0,2991.7,0.439]
[1766234859857,1.369,2992.0,2991.6,0.001]
[1766234860064,1.369,2992.0,2991.7,0.439]
[1766234861986,1.369,2992.0,2991.6,0.001]
[1766234862169,0.3445,2992.0,2991.6,0.44]
[1766234862372,1.2807,2991.9,2991.6,0.44]
[1766234863476,0.002,2992.2,2991.6,0.001]
[1766234863677,0.3445,2991.8,2991.6,0.001]
[1766234863877,0.9362,2991.7,2991.6,0.001]
[1766234864396,1.2807,2991.7,2991.6,0.001]
[1766234869402,1.2827,2992.0,2991.6,0.001]
[1766234869599,1.2807,2991.9,2991.6,0.001]
[1766234869773,1.2807,2991.9,2991.5,0.44]
[1766234869774,0.002,2992.0,2991.5,0.001]
[1766234870299,0.3445,2991.8,2991.5,0.001]
[1766234870495,0.9362,2991.7,2991.5,0.001]
[1766234870702,1.2807,2991.7,2991.5,0.001]
[1766234872299,1.2807,2991.9,2991.5,0.001]
[1766234872900,0.002,2992.0,2991.5,0.001]
[1766234875178,0.002,2992.0,2991.6,0.439]
[1766234877818,0.002,2992.0,2991.5,3.34376108]
[1766234877819,1.2827,2992.0,2991.5,3.34376108]
[1766234878009,1.2827,2992.0,2991.5,0.001]
[1766234878174,1.45507,2992.0,2991.5,0.001]
[1766234880728,0.3445,2991.8,2991.5,0.001]
[1766234881006,1.2807,2991.8,2991.2,3.34310423]
[1766234881206,0.17437,2992.0,2991.2,0.439]
[1766234881207,1.2807,2991.6,2991.2,0.439]
[1766234881397,0.3445,2991.6,2991.1,0.001]
[1766234881598,1.2807,2991.4,2991.1,0.44]
[1766234881785,1.2807,2991.7,2991.1,0.44]
[1766234881986,1.2807,2991.5,2991.1,0.44]
[1766234882186,0.3445,2991.6,2991.1,0.44]
[1766234882698,0.3445,2991.4,2991.1,0.44]
[1766234882886,1.2807,2991.4,2991.1,0.44]
[1766234883509,0.9362,2991.6,2991.1,0.44]
[1766234883699,1.2807,2991.3,2991.1,0.44]
[1766234884909,1.2807,2991.3,2991.1,0.001]
[1766234887914,1.356,2991.5,2991.1,0.001]
[1766234888918,1.356,2991.5,2991.1,0.44]
[1766234889214,0.3559,2991.4,2991.1,0.44]
[1766234889390,1.356,2991.4,2991.1,0.44]
[1766234893120,1.0001,2991.3,2991.1,0.001]
[1766234893326,1.0001,2991.3,2991.1,0.44]
[1766234896919,0.3559,2991.4,2991.1,0.44]
[1766234897504,0.13392505,2991.6,2991.1,0.44]
[1766234897703,1.356,2991.5,2991.1,0.44]
[1766234897904,0.13392505,2991.6,2991.1,0.44]
[1766234898119,0.3559,2991.4,2991.1,0.44]